[Event "*** Titled Tuesday Blitz"]
[Site "Chess.com"]
[Date "2021.03.09"]
[Round "4"]
[White "Gusarov91"]
[Black "Kaslask"]
[Result "0-1"]
[WhiteElo "2521"]
[BlackElo "2341"]
[TimeControl "180+1"]
[EndTime "10:39:05 PST"]
[Termination "Kaslask won by checkmate"]

1. d4 {[%clk 0:03:00.9]} 1... Nf6 {[%clk 0:02:58.2]} 2. Nf3 {[%clk 0:03:01.3]}
2... e6 {[%clk 0:02:57.4]} 3. c4 {[%clk 0:03:01.8]} 3... d5 {[%clk 0:02:56.5]}
4. g3 {[%clk 0:03:02.4]} 4... Be7 {[%clk 0:02:54.3]} 5. Bg2 {[%clk 0:03:02.9]}
5... O-O {[%clk 0:02:53.9]} 6. O-O {[%clk 0:03:03.5]} 6... dxc4 {[%clk
0:02:53.2]} 7. Na3 {[%clk 0:03:03.9]} 7... a6 {[%clk 0:02:49]} 8. Nxc4 {[%clk
0:03:03.8]} 8... c5 {[%clk 0:02:46.8]} 9. Nfe5 {[%clk 0:03:04.4]} 9... cxd4
{[%clk 0:02:40.4]} 10. a4 {[%clk 0:03:02.8]} 10... Nc6 {[%clk 0:02:39.9]} 11.
Bxc6 {[%clk 0:03:01.2]} 11... bxc6 {[%clk 0:02:39.4]} 12. Nxc6 {[%clk
0:03:01.8]} 12... Qc7 {[%clk 0:02:39.2]} 13. Nxe7+ {[%clk 0:03:02.2]} 13... Qxe7
{[%clk 0:02:38.9]} 14. Qxd4 {[%clk 0:03:02.8]} 14... Rd8 {[%clk 0:02:33.8]} 15.
Qh4 {[%clk 0:02:58.3]} 15... e5 {[%clk 0:02:27.6]} 16. Bg5 {[%clk 0:02:42.3]}
16... Rd4 {[%clk 0:02:24.3]} 17. Bxf6 {[%clk 0:02:37.3]} 17... gxf6 {[%clk
0:02:24.2]} 18. Qh6 {[%clk 0:02:09.7]} 18... Rxc4 {[%clk 0:02:22.4]} 19. Rac1
{[%clk 0:02:10.6]} 19... Be6 {[%clk 0:02:18.1]} 20. b3 {[%clk 0:01:55.8]} 20...
Rxc1 {[%clk 0:02:14.7]} 21. Rxc1 {[%clk 0:01:56.7]} 21... Bxb3 {[%clk
0:02:13.9]} 22. a5 {[%clk 0:01:55.1]} 22... Rd8 {[%clk 0:02:10.6]} 23. h4 {[%clk
0:01:49.2]} 23... Rd1+ {[%clk 0:02:08.3]} 24. Rxd1 {[%clk 0:01:48.6]} 24... Bxd1
{[%clk 0:02:07.9]} 25. Qd2 {[%clk 0:01:49.5]} 25... Ba4 {[%clk 0:02:05.2]} 26.
e4 {[%clk 0:01:44.4]} 26... Qd7 {[%clk 0:02:00.9]} 27. Qb4 {[%clk 0:01:42.9]}
27... Bc6 {[%clk 0:01:54.1]} 28. Kg2 {[%clk 0:01:33]} 28... Qd4 {[%clk
0:01:45.8]} 29. Qb8+ {[%clk 0:01:32]} 29... Kg7 {[%clk 0:01:46]} 30. f3 {[%clk
0:01:31.9]} 30... Qd2+ {[%clk 0:01:44]} 31. Kh3 {[%clk 0:01:32.1]} 31... Bd7+
{[%clk 0:01:41.1]} 32. g4 {[%clk 0:01:32.6]} 32... Qf2 {[%clk 0:01:31.8]} 33.
Qb3 {[%clk 0:01:31.5]} 33... h5 {[%clk 0:01:29.8]} 34. Qxf7+ {[%clk 0:01:24.8]}
34... Kxf7 {[%clk 0:01:28]} 35. f4 {[%clk 0:01:25.1]} 35... hxg4# {[%clk
0:01:27.1]} 0-1

[Event "*** Titled Tuesday Blitz"]
[Site "Chess.com"]
[Date "2021.03.09"]
[Round "4"]
[White "googlegoom"]
[Black "Vaathi_Coming"]
[Result "0-1"]
[WhiteElo "2475"]
[BlackElo "2798"]
[TimeControl "180+1"]
[EndTime "10:39:21 PST"]
[Termination "Vaathi_Coming won by checkmate"]

1. Nf3 {[%clk 0:03:00.9]} 1... Nf6 {[%clk 0:02:59.9]} 2. b3 {[%clk 0:03:01.4]}
2... g6 {[%clk 0:03:00.1]} 3. Bb2 {[%clk 0:03:02]} 3... Bg7 {[%clk 0:03:00.7]}
4. e3 {[%clk 0:03:01.7]} 4... O-O {[%clk 0:03:01.2]} 5. Be2 {[%clk 0:03:02.1]}
5... b6 {[%clk 0:03:01.7]} 6. d4 {[%clk 0:03:03]} 6... Bb7 {[%clk 0:03:02.2]} 7.
O-O {[%clk 0:03:03.7]} 7... d5 {[%clk 0:03:02.8]} 8. Nbd2 {[%clk 0:03:04.4]}
8... Nbd7 {[%clk 0:03:03.5]} 9. c4 {[%clk 0:03:05.1]} 9... c5 {[%clk 0:03:04]}
10. Qc2 {[%clk 0:03:05.8]} 10... Rc8 {[%clk 0:03:04]} 11. dxc5 {[%clk
0:03:03.1]} 11... Nxc5 {[%clk 0:03:03.8]} 12. Rfd1 {[%clk 0:03:01]} 12... e6
{[%clk 0:02:51.2]} 13. Rac1 {[%clk 0:02:59.4]} 13... Qe7 {[%clk 0:02:51.3]} 14.
Qb1 {[%clk 0:02:59.4]} 14... Rfd8 {[%clk 0:02:51.4]} 15. Qa1 {[%clk 0:02:59.4]}
15... Nh5 {[%clk 0:02:49.3]} 16. Nd4 {[%clk 0:02:57.8]} 16... e5 {[%clk
0:02:33.8]} 17. N4f3 {[%clk 0:02:20.2]} 17... d4 {[%clk 0:02:32.3]} 18. exd4
{[%clk 0:02:15.5]} 18... Nf4 {[%clk 0:02:32.3]} 19. Bf1 {[%clk 0:02:10.4]} 19...
exd4 {[%clk 0:02:29]} 20. b4 {[%clk 0:01:52.5]} 20... Ncd3 {[%clk 0:02:23.6]}
21. Rb1 {[%clk 0:01:45.5]} 21... Nxb2 {[%clk 0:01:54.9]} 22. Qxb2 {[%clk
0:01:44.8]} 22... d3 {[%clk 0:01:55.3]} 23. Qb3 {[%clk 0:01:44.4]} 23... Qd7
{[%clk 0:01:26.5]} 24. h3 {[%clk 0:01:32.1]} 24... Bh6 {[%clk 0:01:08.2]} 25. c5
{[%clk 0:01:22.2]} 25... Ne2+ {[%clk 0:01:02.2]} 26. Kh1 {[%clk 0:01:19.6]}
26... Bxd2 {[%clk 0:01:01.7]} 27. Nxd2 {[%clk 0:01:18]} 27... Qxh3# {[%clk
0:01:00.6]} 0-1

[Event "*** Titled Tuesday Blitz"]
[Site "Chess.com"]
[Date "2021.03.09"]
[Round "4"]
[White "Slovak_fighter2000"]
[Black "Sanyura"]
[Result "0-1"]
[WhiteElo "2426"]
[BlackElo "2611"]
[TimeControl "180+1"]
[EndTime "10:39:22 PST"]
[Termination "Sanyura won by resignation"]

1. d4 {[%clk 0:03:00.9]} 1... Nf6 {[%clk 0:02:58.4]} 2. Nf3 {[%clk 0:03:01.2]}
2... g6 {[%clk 0:02:58.4]} 3. c4 {[%clk 0:03:00.9]} 3... Bg7 {[%clk 0:02:58.8]}
4. Nc3 {[%clk 0:03:01.5]} 4... d6 {[%clk 0:02:59.3]} 5. e4 {[%clk 0:03:02]} 5...
O-O {[%clk 0:02:59.9]} 6. Be2 {[%clk 0:03:02.5]} 6... e5 {[%clk 0:02:59.8]} 7.
Be3 {[%clk 0:03:03.1]} 7... Ng4 {[%clk 0:02:59.3]} 8. Bg5 {[%clk 0:03:03.2]}
8... f6 {[%clk 0:02:59.1]} 9. Bh4 {[%clk 0:03:03.6]} 9... Nc6 {[%clk 0:02:59.5]}
10. d5 {[%clk 0:03:02.7]} 10... Ne7 {[%clk 0:02:59.7]} 11. Nd2 {[%clk
0:03:03.2]} 11... Nh6 {[%clk 0:03:00]} 12. f3 {[%clk 0:03:01.7]} 12... c5 {[%clk
0:02:59.7]} 13. a3 {[%clk 0:03:00.4]} 13... g5 {[%clk 0:02:55.7]} 14. Bf2 {[%clk
0:02:59.6]} 14... f5 {[%clk 0:02:56.1]} 15. b4 {[%clk 0:02:59.2]} 15... b6
{[%clk 0:02:56.3]} 16. O-O {[%clk 0:02:54.7]} 16... f4 {[%clk 0:02:53.3]} 17.
bxc5 {[%clk 0:02:49.5]} 17... bxc5 {[%clk 0:02:53.2]} 18. Rb1 {[%clk 0:02:47.4]}
18... Rf6 {[%clk 0:02:40.8]} 19. Re1 {[%clk 0:02:17.8]} 19... Rg6 {[%clk
0:02:40.3]} 20. h3 {[%clk 0:02:10.9]} 20... Nf7 {[%clk 0:02:39.9]} 21. Nf1
{[%clk 0:01:57.3]} 21... h5 {[%clk 0:02:39.3]} 22. Nh2 {[%clk 0:01:57.4]} 22...
Nh6 {[%clk 0:02:39.9]} 23. Rb2 {[%clk 0:01:55.1]} 23... Kh7 {[%clk 0:02:35.2]}
24. Nb5 {[%clk 0:01:51.7]} 24... Neg8 {[%clk 0:02:32.7]} 25. Nc3 {[%clk
0:01:43.6]} 25... g4 {[%clk 0:02:13.4]} 26. hxg4 {[%clk 0:01:42.4]} 26... hxg4
{[%clk 0:02:13.5]} 27. Nxg4 {[%clk 0:01:40.4]} 27... Nxg4 {[%clk 0:02:09.7]} 28.
fxg4 {[%clk 0:01:41.3]} 28... Nh6 {[%clk 0:02:07.4]} 29. Bf3 {[%clk 0:01:24.4]}
29... Nxg4 {[%clk 0:02:07.2]} 30. Qe2 {[%clk 0:01:22.6]} 30... Qg5 {[%clk
0:02:04.2]} 31. Reb1 {[%clk 0:01:19.5]} 31... Qh5 {[%clk 0:01:58.2]} 32. Kf1
{[%clk 0:01:13.4]} 32... Qh1+ {[%clk 0:01:43.1]} 33. Bg1 {[%clk 0:01:13.7]}
33... Ne3+ {[%clk 0:01:42.3]} 34. Kf2 {[%clk 0:01:08.6]} 34... Qh4+ {[%clk
0:01:32.8]} 0-1

[Event "*** Titled Tuesday Blitz"]
[Site "Chess.com"]
[Date "2021.03.09"]
[Round "4"]
[White "IANOV0007"]
[Black "PushingpawnsNYC"]
[Result "1-0"]
[WhiteElo "2491"]
[BlackElo "2304"]
[TimeControl "180+1"]
[EndTime "10:39:26 PST"]
[Termination "IANOV0007 won by checkmate"]

1. Nf3 {[%clk 0:03:00.9]} 1... Nf6 {[%clk 0:02:58.8]} 2. g3 {[%clk 0:02:59.8]}
2... g6 {[%clk 0:02:59.1]} 3. b3 {[%clk 0:02:58.9]} 3... Bg7 {[%clk 0:02:59.7]}
4. Bb2 {[%clk 0:02:59]} 4... O-O {[%clk 0:03:00.6]} 5. Bg2 {[%clk 0:02:58.9]}
5... d5 {[%clk 0:03:01.5]} 6. c4 {[%clk 0:02:58.1]} 6... c6 {[%clk 0:02:55.1]}
7. O-O {[%clk 0:02:57.7]} 7... Bf5 {[%clk 0:02:55.1]} 8. d3 {[%clk 0:02:57.4]}
8... Qc8 {[%clk 0:02:53.9]} 9. Re1 {[%clk 0:02:56.3]} 9... Bh3 {[%clk
0:02:53.5]} 10. Bh1 {[%clk 0:02:55.7]} 10... h6 {[%clk 0:02:53.6]} 11. Nbd2
{[%clk 0:02:54.9]} 11... Re8 {[%clk 0:02:51.6]} 12. Rc1 {[%clk 0:02:53.7]} 12...
Qd7 {[%clk 0:02:47.8]} 13. Ne5 {[%clk 0:02:50.7]} 13... Qe6 {[%clk 0:02:46.9]}
14. Ndf3 {[%clk 0:02:47.2]} 14... Ng4 {[%clk 0:02:43.2]} 15. cxd5 {[%clk
0:02:43.9]} 15... cxd5 {[%clk 0:02:42.7]} 16. d4 {[%clk 0:02:38.2]} 16... Nxe5
{[%clk 0:02:36.1]} 17. Nxe5 {[%clk 0:02:36.7]} 17... Nd7 {[%clk 0:02:35]} 18. e4
{[%clk 0:02:22.1]} 18... Nxe5 {[%clk 0:02:33.7]} 19. exd5 {[%clk 0:02:18.9]}
19... Qg4 {[%clk 0:02:28.2]} 20. dxe5 {[%clk 0:02:17.7]} 20... Rad8 {[%clk
0:02:21.4]} 21. Qxg4 {[%clk 0:02:12.9]} 21... Bxg4 {[%clk 0:02:20.6]} 22. f4
{[%clk 0:02:12.3]} 22... f6 {[%clk 0:02:12.9]} 23. Rc7 {[%clk 0:02:03]} 23...
Rd7 {[%clk 0:02:09.8]} 24. Rec1 {[%clk 0:01:56.8]} 24... fxe5 {[%clk 0:02:03.5]}
25. fxe5 {[%clk 0:01:55.6]} 25... Rxc7 {[%clk 0:01:56.5]} 26. Rxc7 {[%clk
0:01:54.2]} 26... Rc8 {[%clk 0:01:57.4]} 27. Rxc8+ {[%clk 0:01:48.9]} 27... Bxc8
{[%clk 0:01:56.2]} 28. Be4 {[%clk 0:01:48.8]} 28... g5 {[%clk 0:01:52.6]} 29.
Kf2 {[%clk 0:01:48.4]} 29... g4 {[%clk 0:01:51]} 30. Ke3 {[%clk 0:01:47.2]}
30... Kf7 {[%clk 0:01:48.7]} 31. e6+ {[%clk 0:01:44.1]} 31... Kf8 {[%clk
0:01:48.7]} 32. Bxg7+ {[%clk 0:01:42.9]} 32... Kxg7 {[%clk 0:01:49.6]} 33. Kf4
{[%clk 0:01:42.5]} 33... Kf6 {[%clk 0:01:49.3]} 34. Kxg4 {[%clk 0:01:39.6]}
34... Ke5 {[%clk 0:01:49.5]} 35. Bg2 {[%clk 0:01:37.8]} 35... b5 {[%clk
0:01:49.5]} 36. Kh5 {[%clk 0:01:36.9]} 36... a5 {[%clk 0:01:48.4]} 37. Kxh6
{[%clk 0:01:36.5]} 37... a4 {[%clk 0:01:48.5]} 38. bxa4 {[%clk 0:01:34.5]} 38...
bxa4 {[%clk 0:01:49.4]} 39. a3 {[%clk 0:01:34.3]} 39... Kd4 {[%clk 0:01:49.1]}
40. Kg7 {[%clk 0:01:32.5]} 40... Kc3 {[%clk 0:01:49.2]} 41. Kf7 {[%clk
0:01:32.2]} 41... Kb3 {[%clk 0:01:49.6]} 42. Kxe7 {[%clk 0:01:32.2]} 42... Kxa3
{[%clk 0:01:50.1]} 43. Kd8 {[%clk 0:01:31.5]} 43... Kb3 {[%clk 0:01:46.3]} 44.
e7 {[%clk 0:01:31]} 44... a3 {[%clk 0:01:46.5]} 45. e8=Q {[%clk 0:01:30.4]}
45... a2 {[%clk 0:01:46.9]} 46. Qb5+ {[%clk 0:01:29.9]} 46... Kc2 {[%clk
0:01:46.8]} 47. Qc4+ {[%clk 0:01:28.8]} 47... Kb2 {[%clk 0:01:46.8]} 48. Qb4+
{[%clk 0:01:28.8]} 48... Kc1 {[%clk 0:01:46.8]} 49. Qc3+ {[%clk 0:01:28.1]}
49... Kb1 {[%clk 0:01:47.2]} 50. Qb3+ {[%clk 0:01:28]} 50... Ka1 {[%clk
0:01:47.2]} 51. Be4 {[%clk 0:01:24.9]} 51... Bf5 {[%clk 0:01:44.1]} 52. Qc3#
{[%clk 0:01:24.4]} 1-0

[Event "*** Titled Tuesday Blitz"]
[Site "Chess.com"]
[Date "2021.03.09"]
[Round "4"]
[White "Andrakhanova"]
[Black "HackingKid98"]
[Result "0-1"]
[WhiteElo "2274"]
[BlackElo "2458"]
[TimeControl "180+1"]
[EndTime "10:39:35 PST"]
[Termination "HackingKid98 won by resignation"]

1. c4 {[%clk 0:02:58]} 1... c6 {[%clk 0:02:54.2]} 2. e4 {[%clk 0:02:57.4]} 2...
d5 {[%clk 0:02:55.1]} 3. exd5 {[%clk 0:02:58.3]} 3... cxd5 {[%clk 0:02:54.8]} 4.
d4 {[%clk 0:02:57.7]} 4... Nf6 {[%clk 0:02:55.7]} 5. Nc3 {[%clk 0:02:56.9]} 5...
g6 {[%clk 0:02:55.9]} 6. Nf3 {[%clk 0:02:56.1]} 6... Bg7 {[%clk 0:02:55.8]} 7.
Qb3 {[%clk 0:02:55.7]} 7... O-O {[%clk 0:02:56.7]} 8. cxd5 {[%clk 0:02:55.7]}
8... Na6 {[%clk 0:02:52.2]} 9. Bg5 {[%clk 0:02:54.2]} 9... Nc7 {[%clk
0:02:51.8]} 10. Bxf6 {[%clk 0:02:54.4]} 10... Bxf6 {[%clk 0:02:52.7]} 11. Be2
{[%clk 0:02:52.4]} 11... b5 {[%clk 0:02:51.5]} 12. Bxb5 {[%clk 0:02:37.7]} 12...
Rb8 {[%clk 0:02:49]} 13. Qc4 {[%clk 0:02:27.3]} 13... Nxb5 {[%clk 0:02:36]} 14.
Nxb5 {[%clk 0:02:28.2]} 14... Qa5+ {[%clk 0:02:25.8]} 15. Nc3 {[%clk 0:02:27.3]}
15... Rxb2 {[%clk 0:02:09.1]} 16. O-O {[%clk 0:02:20.7]} 16... Ba6 {[%clk
0:02:08.7]} 17. Qa4 {[%clk 0:02:20.9]} 17... Qxa4 {[%clk 0:02:02.5]} 18. Nxa4
{[%clk 0:02:21.8]} 18... Rb4 {[%clk 0:02:02.5]} 19. Nc5 {[%clk 0:02:15.1]} 19...
Bxf1 {[%clk 0:02:02.1]} 20. Rxf1 {[%clk 0:02:14.2]} 20... Bxd4 {[%clk
0:02:01.9]} 21. Nb3 {[%clk 0:02:07.9]} 21... Bb6 {[%clk 0:01:57.4]} 22. Ne5
{[%clk 0:02:02.9]} 22... Rb5 {[%clk 0:01:55.3]} 23. Nc6 {[%clk 0:02:00.9]} 23...
Re8 {[%clk 0:01:47.6]} 24. Rd1 {[%clk 0:01:53.1]} 24... Kf8 {[%clk 0:01:47.3]}
25. g3 {[%clk 0:01:51.2]} 25... Rc8 {[%clk 0:01:41.5]} 26. h4 {[%clk 0:01:32]}
26... e6 {[%clk 0:01:40.9]} 27. Ne5 {[%clk 0:00:50.2]} 27... Rxd5 {[%clk
0:01:38]} 28. Re1 {[%clk 0:00:50.3]} 28... Rc2 {[%clk 0:01:35.5]} 29. Ng4 {[%clk
0:00:44.5]} 29... Rxa2 {[%clk 0:01:30.5]} 0-1

[Event "*** Titled Tuesday Blitz"]
[Site "Chess.com"]
[Date "2021.03.09"]
[Round "4"]
[White "Aradhya2000"]
[Black "Nayemhaque22"]
[Result "1-0"]
[WhiteElo "2535"]
[BlackElo "2327"]
[TimeControl "180+1"]
[EndTime "10:39:38 PST"]
[Termination "Aradhya2000 won by resignation"]

1. d4 {[%clk 0:03:00.9]} 1... Nf6 {[%clk 0:02:58.7]} 2. c4 {[%clk 0:03:00]} 2...
e6 {[%clk 0:02:58.4]} 3. Nf3 {[%clk 0:03:00.2]} 3... d5 {[%clk 0:02:58]} 4. Nc3
{[%clk 0:03:00.1]} 4... Bb4 {[%clk 0:02:57.9]} 5. Qb3 {[%clk 0:02:53.7]} 5... c5
{[%clk 0:02:56]} 6. dxc5 {[%clk 0:02:53.4]} 6... Nc6 {[%clk 0:02:55.3]} 7. Bg5
{[%clk 0:02:51]} 7... d4 {[%clk 0:02:52.6]} 8. O-O-O {[%clk 0:02:48.9]} 8...
Bxc5 {[%clk 0:02:51.3]} 9. e3 {[%clk 0:02:31.2]} 9... e5 {[%clk 0:02:42.4]} 10.
exd4 {[%clk 0:02:01.9]} 10... exd4 {[%clk 0:02:23.7]} 11. Bxf6 {[%clk
0:01:52.6]} 11... Qxf6 {[%clk 0:02:21.5]} 12. Nd5 {[%clk 0:01:50.9]} 12... Qh6+
{[%clk 0:02:20.4]} 13. Kb1 {[%clk 0:01:49.7]} 13... O-O {[%clk 0:02:19.4]} 14.
Bd3 {[%clk 0:01:42.1]} 14... Be6 {[%clk 0:02:15.3]} 15. Qxb7 {[%clk 0:01:38.5]}
15... Bxd5 {[%clk 0:02:12.2]} 16. cxd5 {[%clk 0:01:36.4]} 16... Nb4 {[%clk
0:02:11.2]} 17. d6 {[%clk 0:01:09.2]} 17... Qxd6 {[%clk 0:02:04.9]} 18. Qe4
{[%clk 0:01:08.8]} 18... f5 {[%clk 0:02:02.1]} 19. Bc4+ {[%clk 0:01:08.4]} 19...
Kh8 {[%clk 0:01:59.8]} 20. Qe6 {[%clk 0:01:08.5]} 20... Rad8 {[%clk 0:01:50.7]}
21. Ng5 {[%clk 0:01:05.9]} 21... Qc7 {[%clk 0:01:43.3]} 22. a3 {[%clk
0:00:53.6]} 22... Nc6 {[%clk 0:01:37.8]} 23. Rhe1 {[%clk 0:00:49]} 23... Na5
{[%clk 0:01:27]} 24. Nf7+ {[%clk 0:00:46.4]} 24... Rxf7 {[%clk 0:01:26.1]} 25.
Qxf7 {[%clk 0:00:47.3]} 25... Qb6 {[%clk 0:01:25.3]} 26. Re8+ {[%clk 0:00:45.4]}
1-0

[Event "*** Titled Tuesday Blitz"]
[Site "Chess.com"]
[Date "2021.03.09"]
[Round "4"]
[White "CM_rui"]
[Black "Evachess2006"]
[Result "1-0"]
[WhiteElo "2392"]
[BlackElo "1589"]
[TimeControl "180+1"]
[EndTime "10:39:43 PST"]
[Termination "CM_rui won on time"]

1. e4 {[%clk 0:03:00.9]} 1... e5 {[%clk 0:02:51.4]} 2. Nc3 {[%clk 0:03:00.6]}
2... Nc6 {[%clk 0:02:49.7]} 3. f4 {[%clk 0:03:00.7]} 3... exf4 {[%clk
0:02:47.6]} 4. Nf3 {[%clk 0:03:01.1]} 4... Bb4 {[%clk 0:02:43]} 5. d4 {[%clk
0:02:59.2]} 5... Nf6 {[%clk 0:02:33]} 6. Bd3 {[%clk 0:02:54.6]} 6... d5 {[%clk
0:02:26.3]} 7. e5 {[%clk 0:02:49.4]} 7... Ne4 {[%clk 0:02:22.9]} 8. Bd2 {[%clk
0:02:39.4]} 8... Nxd2 {[%clk 0:02:17.9]} 9. Qxd2 {[%clk 0:02:40.3]} 9... Bg4
{[%clk 0:02:10.5]} 10. Qxf4 {[%clk 0:02:11.7]} 10... Qd7 {[%clk 0:01:42.2]} 11.
a3 {[%clk 0:02:02.5]} 11... Ba5 {[%clk 0:01:03.1]} 12. O-O {[%clk 0:01:33.9]}
12... Bb6 {[%clk 0:00:59.9]} 13. Ne2 {[%clk 0:01:27.5]} 13... O-O-O {[%clk
0:00:41.5]} 14. h3 {[%clk 0:01:26.8]} 14... Bh5 {[%clk 0:00:19.1]} 15. Bf5
{[%clk 0:01:26.4]} 1-0

[Event "*** Titled Tuesday Blitz"]
[Site "Chess.com"]
[Date "2021.03.09"]
[Round "4"]
[White "Kobalia"]
[Black "NikolaN98"]
[Result "1-0"]
[WhiteElo "2713"]
[BlackElo "2512"]
[TimeControl "180+1"]
[EndTime "10:39:44 PST"]
[Termination "Kobalia won on time"]

1. e4 {[%clk 0:03:00.9]} 1... e6 {[%clk 0:02:59.4]} 2. d3 {[%clk 0:03:00.6]}
2... d5 {[%clk 0:02:58.6]} 3. Nd2 {[%clk 0:03:01]} 3... Nf6 {[%clk 0:02:58]} 4.
Ngf3 {[%clk 0:02:59.4]} 4... c5 {[%clk 0:02:55.6]} 5. g3 {[%clk 0:02:58.6]} 5...
Nc6 {[%clk 0:02:51.5]} 6. Bg2 {[%clk 0:02:57.4]} 6... Be7 {[%clk 0:02:51.4]} 7.
O-O {[%clk 0:02:56.8]} 7... O-O {[%clk 0:02:50.9]} 8. Re1 {[%clk 0:02:56.7]}
8... b5 {[%clk 0:02:50]} 9. a4 {[%clk 0:02:53]} 9... b4 {[%clk 0:02:47.4]} 10.
exd5 {[%clk 0:02:53.1]} 10... exd5 {[%clk 0:02:46.3]} 11. d4 {[%clk 0:02:52.9]}
11... c4 {[%clk 0:02:32.9]} 12. Ne5 {[%clk 0:02:50.9]} 12... Nxd4 {[%clk
0:02:07.2]} 13. Ndxc4 {[%clk 0:02:49.4]} 13... Ne6 {[%clk 0:01:58.7]} 14. Nc6
{[%clk 0:02:21.6]} 14... Qc7 {[%clk 0:01:58.3]} 15. Nxe7+ {[%clk 0:02:20.4]}
15... Qxe7 {[%clk 0:01:59.2]} 16. Ne3 {[%clk 0:02:20.3]} 16... Bb7 {[%clk
0:01:53.1]} 17. Nf5 {[%clk 0:02:18.4]} 17... Qd7 {[%clk 0:01:49.1]} 18. b3
{[%clk 0:02:15.3]} 18... d4 {[%clk 0:01:20]} 19. Bb2 {[%clk 0:02:04.6]} 19...
Bxg2 {[%clk 0:00:56.1]} 20. Kxg2 {[%clk 0:02:04.2]} 20... Rfd8 {[%clk
0:00:53.8]} 21. Qf3 {[%clk 0:02:02.2]} 21... Rac8 {[%clk 0:00:52.6]} 22. Rad1
{[%clk 0:01:59.6]} 22... Rxc2 {[%clk 0:00:50.9]} 23. Nxd4 {[%clk 0:01:59.5]}
23... Nxd4 {[%clk 0:00:35.5]} 24. Bxd4 {[%clk 0:01:47.7]} 1-0

[Event "*** Titled Tuesday Blitz"]
[Site "Chess.com"]
[Date "2021.03.09"]
[Round "4"]
[White "Sanan_Sjugirov"]
[Black "dozer80"]
[Result "1-0"]
[WhiteElo "2892"]
[BlackElo "2585"]
[TimeControl "180+1"]
[EndTime "10:39:50 PST"]
[Termination "Sanan_Sjugirov won by resignation"]

1. d4 {[%clk 0:03:00.9]} 1... d5 {[%clk 0:02:59.9]} 2. Nf3 {[%clk 0:03:01]} 2...
Nf6 {[%clk 0:02:59.7]} 3. Bf4 {[%clk 0:03:00.8]} 3... g6 {[%clk 0:02:56.8]} 4.
e3 {[%clk 0:03:00.7]} 4... Bg7 {[%clk 0:02:56.9]} 5. Be2 {[%clk 0:02:58.3]} 5...
O-O {[%clk 0:02:56.3]} 6. O-O {[%clk 0:02:58.8]} 6... b6 {[%clk 0:02:55.2]} 7.
c3 {[%clk 0:02:56.4]} 7... Bb7 {[%clk 0:02:54.2]} 8. h3 {[%clk 0:02:56.3]} 8...
c5 {[%clk 0:02:50]} 9. Nbd2 {[%clk 0:02:53.7]} 9... Nc6 {[%clk 0:02:43.5]} 10.
Bh2 {[%clk 0:02:52.9]} 10... Rc8 {[%clk 0:02:30]} 11. Qb1 {[%clk 0:02:51.8]}
11... Nd7 {[%clk 0:02:25.8]} 12. b4 {[%clk 0:02:47.2]} 12... cxd4 {[%clk
0:02:25]} 13. cxd4 {[%clk 0:02:46.9]} 13... Re8 {[%clk 0:02:19.7]} 14. Qb3
{[%clk 0:02:44]} 14... e5 {[%clk 0:02:16.2]} 15. dxe5 {[%clk 0:02:33.3]} 15...
Ncxe5 {[%clk 0:02:16.7]} 16. Rad1 {[%clk 0:02:24.4]} 16... Rc3 {[%clk
0:01:59.3]} 17. Qa4 {[%clk 0:02:19.2]} 17... Qa8 {[%clk 0:01:41.9]} 18. Bb5
{[%clk 0:01:47.4]} 18... Re7 {[%clk 0:01:40]} 19. Ba6 {[%clk 0:01:44.8]} 19...
Bc6 {[%clk 0:01:37.7]} 20. b5 {[%clk 0:01:44.6]} 20... Nc5 {[%clk 0:01:35.5]}
21. Qh4 {[%clk 0:01:43.2]} 21... Nxf3+ {[%clk 0:01:27.4]} 22. Nxf3 {[%clk
0:01:42.9]} 22... Re4 {[%clk 0:01:27.5]} 23. g4 {[%clk 0:01:29.5]} 23... Nxa6
{[%clk 0:00:53.4]} 24. Ng5 {[%clk 0:01:26.2]} 24... Re8 {[%clk 0:00:29.4]} 25.
Qxh7+ {[%clk 0:01:24.3]} 25... Kf8 {[%clk 0:00:29.7]} 26. Bd6+ {[%clk
0:01:23.7]} 1-0

[Event "*** Titled Tuesday Blitz"]
[Site "Chess.com"]
[Date "2021.03.09"]
[Round "4"]
[White "Cambek64"]
[Black "Joseacorrea"]
[Result "1-0"]
[WhiteElo "2397"]
[BlackElo "2088"]
[TimeControl "180+1"]
[EndTime "10:39:51 PST"]
[Termination "Cambek64 won by resignation"]

1. d4 {[%clk 0:02:58]} 1... e6 {[%clk 0:02:58.8]} 2. e4 {[%clk 0:02:55.9]} 2...
c5 {[%clk 0:02:55.8]} 3. d5 {[%clk 0:02:55.2]} 3... exd5 {[%clk 0:02:52.7]} 4.
exd5 {[%clk 0:02:55.5]} 4... d6 {[%clk 0:02:53.6]} 5. c4 {[%clk 0:02:55.4]} 5...
Nf6 {[%clk 0:02:54]} 6. Nc3 {[%clk 0:02:55.6]} 6... g6 {[%clk 0:02:54.2]} 7. Bd3
{[%clk 0:02:54.9]} 7... Bg7 {[%clk 0:02:53.5]} 8. h3 {[%clk 0:02:53.2]} 8... O-O
{[%clk 0:02:52.4]} 9. Nf3 {[%clk 0:02:53.6]} 9... Re8+ {[%clk 0:02:53]} 10. Be3
{[%clk 0:02:53.4]} 10... Na6 {[%clk 0:02:48.9]} 11. O-O {[%clk 0:02:52.9]} 11...
Nc7 {[%clk 0:02:48.5]} 12. a4 {[%clk 0:02:49.1]} 12... Na6 {[%clk 0:02:46.5]}
13. Rc1 {[%clk 0:02:46.2]} 13... Nb4 {[%clk 0:02:46.2]} 14. Bb1 {[%clk
0:02:46.8]} 14... Bd7 {[%clk 0:02:32.6]} 15. Qd2 {[%clk 0:02:46.6]} 15... a6
{[%clk 0:02:12.6]} 16. Bf4 {[%clk 0:02:42.7]} 16... Qe7 {[%clk 0:01:59.9]} 17.
b3 {[%clk 0:02:30.3]} 17... Nh5 {[%clk 0:01:35.6]} 18. Bh2 {[%clk 0:02:28]}
18... Nf6 {[%clk 0:01:05.1]} 19. Rfe1 {[%clk 0:02:23.2]} 19... Qf8 {[%clk
0:01:05.6]} 20. Ng5 {[%clk 0:02:14]} 20... h6 {[%clk 0:00:57.6]} 21. Nge4 {[%clk
0:02:12.2]} 21... Nxe4 {[%clk 0:00:45.4]} 22. Nxe4 {[%clk 0:02:12.4]} 22... Be5
{[%clk 0:00:31.2]} 23. Bxe5 {[%clk 0:02:09.8]} 23... Rxe5 {[%clk 0:00:30.2]} 24.
Nf6+ {[%clk 0:02:09.2]} 24... Kg7 {[%clk 0:00:16.6]} 25. Nxd7 {[%clk 0:02:04]}
25... Rxe1+ {[%clk 0:00:14.3]} 26. Rxe1 {[%clk 0:02:04.3]} 26... Qd8 {[%clk
0:00:13.1]} 27. Qc3+ {[%clk 0:01:53.2]} 27... f6 {[%clk 0:00:12.5]} 28. Nxf6
{[%clk 0:01:51.8]} 1-0